[Event "Titled Tuesday Blitz January 17 Early 2023"]
[White "Atakhan, Abtin"]
[Black "Heinemann, Josefine"]
[WhiteFideId "22502203"]
[BlackFideId "12900460"]
[WhiteElo "2422"]
[BlackElo "2289"]
[Result "1-0"]
[Round "10"]
[TimeControl "180+2"]
[Date "2023.01.17"]
[WhiteClock "0:00:31"]
[BlackClock "0:01:06"]

1. d4 {[%clk 0:03:00]}  Nf6 {[%clk 0:02:59]} 2. c4 {[%clk 0:03:01]}  e6 {[%clk 0:02:58]} 3. Nf3 {[%clk 0:03:01]}  d5 {[%clk 0:02:57]} 4. Nc3 {[%clk 0:03:02]}  c5 {[%clk 0:02:52]} 5. cxd5 {[%clk 0:03:02]}  Nxd5 {[%clk 0:02:53]} 6. e4 {[%clk 0:03:01]}  Nxc3 {[%clk 0:02:53]} 7. bxc3 {[%clk 0:03:02]}  cxd4 {[%clk 0:02:53]} 8. cxd4 {[%clk 0:03:03]}  Bb4+ {[%clk 0:02:52]} 9. Bd2 {[%clk 0:03:04]}  Bxd2+ {[%clk 0:02:53]} 10. Qxd2 {[%clk 0:03:05]}  O-O {[%clk 0:02:54]} 11. Bc4 {[%clk 0:03:03]}  Nd7 {[%clk 0:02:53]} 12. O-O {[%clk 0:03:03]}  b6 {[%clk 0:02:53]} 13. Rac1 {[%clk 0:02:57]}  Bb7 {[%clk 0:02:52]} 14. Qf4 {[%clk 0:02:53]}  Rc8 {[%clk 0:02:51]} 15. Bd3 {[%clk 0:02:52]}  Rxc1 {[%clk 0:02:41]} 16. Rxc1 {[%clk 0:02:53]}  Qb8 {[%clk 0:02:42]} 17. Qxb8 {[%clk 0:02:36]}  Rxb8 {[%clk 0:02:43]} 18. Rc7 {[%clk 0:02:35]}  Nf6 {[%clk 0:02:42]} 19. Ng5 {[%clk 0:02:30]}  h6 {[%clk 0:02:38]} 20. Nxf7 {[%clk 0:02:31]}  Nxe4 {[%clk 0:02:31]} 21. Ne5 {[%clk 0:02:26]}  Bd5 {[%clk 0:02:19]} 22. h4 {[%clk 0:02:19]}  a5 {[%clk 0:02:12]} 23. a4 {[%clk 0:02:08]}  Nd6 {[%clk 0:02:01]} 24. Nd7 {[%clk 0:02:04]}  Rc8 {[%clk 0:01:53]} 25. Rxc8+ {[%clk 0:02:00]}  Nxc8 {[%clk 0:01:53]} 26. Ba6 {[%clk 0:02:00]}  Ne7 {[%clk 0:01:53]} 27. Nxb6 {[%clk 0:02:00]}  Nc6 {[%clk 0:01:52]} 28. Nxd5 {[%clk 0:01:55]}  exd5 {[%clk 0:01:52]} 29. Bb7 {[%clk 0:01:56]}  Nxd4 {[%clk 0:01:52]} 30. Bxd5+ {[%clk 0:01:56]}  Kf8 {[%clk 0:01:52]} 31. f3 {[%clk 0:01:38]}  g5 {[%clk 0:01:46]} 32. hxg5 {[%clk 0:01:37]}  hxg5 {[%clk 0:01:47]} 33. Kf2 {[%clk 0:01:38]}  Ke7 {[%clk 0:01:47]} 34. Ke3 {[%clk 0:01:37]}  Nf5+ {[%clk 0:01:47]} 35. Ke4 {[%clk 0:01:35]}  Kf6 {[%clk 0:01:47]} 36. Bc4 {[%clk 0:01:29]}  Nh4 {[%clk 0:01:38]} 37. Bf1 {[%clk 0:01:29]}  Nf5 {[%clk 0:01:37]} 38. Bd3 {[%clk 0:01:13]}  Nh4 {[%clk 0:01:35]} 39. g3 {[%clk 0:01:07]}  Nf5 {[%clk 0:01:35]} 40. g4 {[%clk 0:01:07]}  Nh4 {[%clk 0:01:30]} 41. Bc4 {[%clk 0:01:04]}  Ke7 {[%clk 0:01:25]} 42. Bd5 {[%clk 0:00:54]}  Kd6 {[%clk 0:01:23]} 43. Bb7 {[%clk 0:00:52]}  Kc5 {[%clk 0:01:17]} 44. Ke5 {[%clk 0:00:43]}  Kb4 {[%clk 0:01:18]} 45. Kf6 {[%clk 0:00:39]}  Kxa4 {[%clk 0:01:12]} 46. Kxg5 {[%clk 0:00:40]}  Ng2 {[%clk 0:01:12]} 47. f4 {[%clk 0:00:39]}  Ne3 {[%clk 0:01:12]} 48. f5 {[%clk 0:00:39]}  Nc4 {[%clk 0:01:11]} 49. Kf6 {[%clk 0:00:34]}  Nd6 {[%clk 0:01:07]} 50. Bc6+ {[%clk 0:00:34]}  Kb4 {[%clk 0:01:07]} 51. g5 {[%clk 0:00:34]}  a4 {[%clk 0:01:05]} 52. Bxa4 {[%clk 0:00:33]}  Ne4+ {[%clk 0:01:05]} 53. Kg6 {[%clk 0:00:31]}  Kxa4 {[%clk 0:01:06]} 54. f6 {[%clk 0:00:31]} 1-0


[Site "https://www.chess.com"]

[Event "Titled Tuesday Blitz January 17 Early 2023"]
[White "Zherebtsova, Alexandra"]
[Black "Cappai, Davide"]
[WhiteFideId "24129518"]
[BlackFideId "813338"]
[WhiteElo "2155"]
[BlackElo "2140"]
[Result "0-1"]
[Round "10"]
[TimeControl "180+2"]
[Date "2023.01.17"]
[WhiteClock "0:00:01"]
[BlackClock "0:01:20"]

1. d4 {[%clk 0:03:00]}  Nf6 {[%clk 0:02:57]} 2. Nf3 {[%clk 0:03:00]}  c5 {[%clk 0:02:56]} 3. d5 {[%clk 0:03:00]}  e6 {[%clk 0:02:55]} 4. Nc3 {[%clk 0:02:56]}  g6 {[%clk 0:02:52]} 5. e4 {[%clk 0:02:47]}  Bg7 {[%clk 0:02:50]} 6. e5 {[%clk 0:02:38]}  Nxd5 {[%clk 0:02:49]} 7. Nxd5 {[%clk 0:02:39]}  exd5 {[%clk 0:02:49]} 8. Qxd5 {[%clk 0:02:37]}  O-O {[%clk 0:02:49]} 9. Bc4 {[%clk 0:02:21]}  Nc6 {[%clk 0:02:41]} 10. O-O {[%clk 0:02:04]}  b6 {[%clk 0:02:31]} 11. Bg5 {[%clk 0:01:44]}  Qc7 {[%clk 0:02:23]} 12. Rad1 {[%clk 0:01:03]}  Rb8 {[%clk 0:02:24]} 13. Rfe1 {[%clk 0:00:59]}  Nb4 {[%clk 0:02:16]} 14. Qd2 {[%clk 0:00:56]}  Bb7 {[%clk 0:02:09]} 15. c3 {[%clk 0:00:48]}  Nc6 {[%clk 0:02:08]} 16. Qxd7 {[%clk 0:00:40]}  Qxd7 {[%clk 0:02:08]} 17. Rxd7 {[%clk 0:00:40]}  Na5 {[%clk 0:02:09]} 18. Bd5 {[%clk 0:00:28]}  Bxd5 {[%clk 0:02:03]} 19. Rxd5 {[%clk 0:00:29]}  Rfe8 {[%clk 0:02:03]} 20. Rd7 {[%clk 0:00:23]}  h6 {[%clk 0:02:04]} 21. Bh4 {[%clk 0:00:22]}  Nc4 {[%clk 0:02:04]} 22. Rxa7 {[%clk 0:00:17]}  Nxb2 {[%clk 0:02:04]} 23. Bg3 {[%clk 0:00:14]}  Nd3 {[%clk 0:02:01]} 24. Re3 {[%clk 0:00:14]}  c4 {[%clk 0:02:02]} 25. h3 {[%clk 0:00:14]}  b5 {[%clk 0:02:01]} 26. Kh2 {[%clk 0:00:11]}  Rb6 {[%clk 0:01:53]} 27. h4 {[%clk 0:00:10]}  h5 {[%clk 0:01:53]} 28. Kh3 {[%clk 0:00:10]}  Bh6 {[%clk 0:01:52]} 29. Ng5 {[%clk 0:00:10]}  Bxg5 {[%clk 0:01:52]} 30. hxg5 {[%clk 0:00:10]}  Rbe6 {[%clk 0:01:43]} 31. Rf3 {[%clk 0:00:10]}  R8e7 {[%clk 0:01:44]} 32. Ra8+ {[%clk 0:00:07]}  Kg7 {[%clk 0:01:44]} 33. Rb8 {[%clk 0:00:08]}  Nxe5 {[%clk 0:01:44]} 34. Bxe5+ {[%clk 0:00:08]}  Rxe5 {[%clk 0:01:45]} 35. Rb6 {[%clk 0:00:06]}  Rxg5 {[%clk 0:01:43]} 36. g3 {[%clk 0:00:07]}  Rd5 {[%clk 0:01:41]} 37. Kg2 {[%clk 0:00:06]}  Rd3 {[%clk 0:01:41]} 38. Rxb5 {[%clk 0:00:06]}  Rxf3 {[%clk 0:01:39]} 39. Kxf3 {[%clk 0:00:06]}  Rd7 {[%clk 0:01:36]} 40. Ke2 {[%clk 0:00:03]}  Rd3 {[%clk 0:01:34]} 41. Rc5 {[%clk 0:00:03]}  Rxc3 {[%clk 0:01:35]} 42. a4 {[%clk 0:00:03]}  Rc2+ {[%clk 0:01:34]} 43. Ke3 {[%clk 0:00:04]}  c3 {[%clk 0:01:24]} 44. a5 {[%clk 0:00:04]}  Ra2 {[%clk 0:01:24]} 45. Rxc3 {[%clk 0:00:03]}  Rxa5 {[%clk 0:01:24]} 46. Kf3 {[%clk 0:00:04]}  Rf5+ {[%clk 0:01:24]} 47. Kg2 {[%clk 0:00:04]}  Rb5 {[%clk 0:01:24]} 48. Rd3 {[%clk 0:00:04]}  g5 {[%clk 0:01:20]} 49. Rc3 {[%clk 0:00:04]}  Kg6 {[%clk 0:01:21]} 50. Rd3 {[%clk 0:00:05]}  f6 {[%clk 0:01:21]} 51. Rc3 {[%clk 0:00:05]}  Rd5 {[%clk 0:01:22]} 52. Rb3 {[%clk 0:00:05]}  Rd4 {[%clk 0:01:21]} 53. Rc3 {[%clk 0:00:05]}  h4 {[%clk 0:01:21]} 54. gxh4 {[%clk 0:00:05]}  Rxh4 {[%clk 0:01:21]} 55. Rf3 {[%clk 0:00:05]}  Rd4 {[%clk 0:01:21]} 56. Ra3 {[%clk 0:00:05]}  f5 {[%clk 0:01:21]} 57. Ra6+ {[%clk 0:00:04]}  Kh5 {[%clk 0:01:21]} 58. Ra8 {[%clk 0:00:04]}  Kg4 {[%clk 0:01:22]} 59. Ra3 {[%clk 0:00:04]}  f4 {[%clk 0:01:22]} 60. Rb3 {[%clk 0:00:03]}  Rc4 {[%clk 0:01:20]} 61. Ra3 {[%clk 0:00:03]}  Rc5 {[%clk 0:01:21]} 62. Rb3 {[%clk 0:00:03]}  Ra5 {[%clk 0:01:20]} 63. Rc3 {[%clk 0:00:03]}  Kf5 {[%clk 0:01:21]} 64. Rb3 {[%clk 0:00:02]}  g4 {[%clk 0:01:21]} 65. Rc3 {[%clk 0:00:02]}  Kg5 {[%clk 0:01:21]} 66. Rb3 {[%clk 0:00:02]}  Kh4 {[%clk 0:01:22]} 67. Rb8 {[%clk 0:00:01]}  Rh5 {[%clk 0:01:21]} 68. Rb7 {[%clk 0:00:01]}  Rh6 {[%clk 0:01:20]} 69. Rb8 {[%clk 0:00:01]}  Rh7 {[%clk 0:01:20]} 0-1


[Site "https://www.chess.com"]

[Event "Titled Tuesday Blitz January 17 Early 2023"]
[White "Tarasova, Viktoriya"]
[Black "Khamdamova, Afruza"]
[WhiteFideId "4175840"]
[BlackFideId "14210444"]
[WhiteElo "2226"]
[BlackElo "2162"]
[Result "1-0"]
[Round "10"]
[TimeControl "180+2"]
[Date "2023.01.17"]
[WhiteClock "0:00:28"]
[BlackClock "0:00:20"]

1. d4 {[%clk 0:03:00]}  d5 {[%clk 0:02:59]} 2. c4 {[%clk 0:03:00]}  e6 {[%clk 0:02:59]} 3. Nc3 {[%clk 0:02:59]}  Nf6 {[%clk 0:03:00]} 4. cxd5 {[%clk 0:02:59]}  exd5 {[%clk 0:03:00]} 5. Bg5 {[%clk 0:02:59]}  Be7 {[%clk 0:03:00]} 6. Qc2 {[%clk 0:02:59]}  O-O {[%clk 0:02:59]} 7. e3 {[%clk 0:02:59]}  c6 {[%clk 0:02:59]} 8. Bd3 {[%clk 0:02:59]}  h6 {[%clk 0:02:59]} 9. Bh4 {[%clk 0:02:58]}  Be6 {[%clk 0:02:58]} 10. Nge2 {[%clk 0:02:57]}  Nbd7 {[%clk 0:02:58]} 11. O-O {[%clk 0:02:57]}  Re8 {[%clk 0:02:59]} 12. f3 {[%clk 0:02:58]}  Rc8 {[%clk 0:02:48]} 13. Bf2 {[%clk 0:02:51]}  a5 {[%clk 0:02:44]} 14. h3 {[%clk 0:02:50]}  b5 {[%clk 0:02:40]} 15. e4 {[%clk 0:02:49]}  b4 {[%clk 0:02:30]} 16. Na4 {[%clk 0:02:48]}  Nb6 {[%clk 0:02:12]} 17. Nc5 {[%clk 0:02:40]}  Bxc5 {[%clk 0:02:08]} 18. dxc5 {[%clk 0:02:39]}  Nc4 {[%clk 0:02:08]} 19. Nd4 {[%clk 0:02:29]}  Ne5 {[%clk 0:01:58]} 20. Ba6 {[%clk 0:02:19]}  Rc7 {[%clk 0:01:54]} 21. f4 {[%clk 0:02:11]}  Nc4 {[%clk 0:01:45]} 22. Nxe6 {[%clk 0:01:51]}  Rxe6 {[%clk 0:01:44]} 23. e5 {[%clk 0:01:51]}  Ne4 {[%clk 0:01:43]} 24. Bxc4 {[%clk 0:01:46]}  Nxf2 {[%clk 0:01:42]} 25. Rxf2 {[%clk 0:01:40]}  dxc4 {[%clk 0:01:42]} 26. Rd1 {[%clk 0:01:38]}  Rd7 {[%clk 0:01:42]} 27. Rxd7 {[%clk 0:01:20]}  Qxd7 {[%clk 0:01:42]} 28. Qxc4 {[%clk 0:01:21]}  Qd1+ {[%clk 0:01:41]} 29. Kh2 {[%clk 0:01:09]}  h5 {[%clk 0:01:16]} 30. Qe4 {[%clk 0:00:58]}  Qd7 {[%clk 0:00:43]} 31. f5 {[%clk 0:00:49]}  Rh6 {[%clk 0:00:43]} 32. Re2 {[%clk 0:00:46]}  h4 {[%clk 0:00:38]} 33. e6 {[%clk 0:00:39]}  fxe6 {[%clk 0:00:38]} 34. fxe6 {[%clk 0:00:39]}  Qc7+ {[%clk 0:00:38]} 35. Kg1 {[%clk 0:00:31]}  Rf6 {[%clk 0:00:20]} 36. e7 {[%clk 0:00:28]} 1-0


[Site "https://www.chess.com"]

[Event "Titled Tuesday Blitz January 17 Early 2023"]
[White "Hajiyev, Kanan"]
[Black "Castellanos Gomez, Alejandro"]
[WhiteFideId "13404148"]
[BlackFideId "22284141"]
[WhiteElo "2197"]
[BlackElo "2253"]
[Result "0-1"]
[Round "10"]
[TimeControl "180+2"]
[Date "2023.01.17"]
[WhiteClock "0:00:29"]
[BlackClock "0:02:34"]

1. d4 {[%clk 0:02:31]}  e6 {[%clk 0:02:59]} 2. c4 {[%clk 0:02:31]}  d5 {[%clk 0:02:59]} 3. cxd5 {[%clk 0:02:31]}  exd5 {[%clk 0:02:58]} 4. Nc3 {[%clk 0:02:32]}  Nf6 {[%clk 0:02:58]} 5. Nf3 {[%clk 0:02:33]}  c6 {[%clk 0:02:59]} 6. Bf4 {[%clk 0:02:33]}  Bd6 {[%clk 0:02:59]} 7. Bxd6 {[%clk 0:02:33]}  Qxd6 {[%clk 0:02:59]} 8. e3 {[%clk 0:02:34]}  O-O {[%clk 0:03:00]} 9. Bd3 {[%clk 0:02:34]}  Re8 {[%clk 0:03:01]} 10. Qc2 {[%clk 0:02:35]}  Bg4 {[%clk 0:03:02]} 11. Ne5 {[%clk 0:02:34]}  Bh5 {[%clk 0:03:01]} 12. g4 {[%clk 0:02:30]}  Nxg4 {[%clk 0:02:57]} 13. Bxh7+ {[%clk 0:02:29]}  Kh8 {[%clk 0:02:56]} 14. Nxg4 {[%clk 0:02:23]}  Bxg4 {[%clk 0:02:56]} 15. Bf5 {[%clk 0:02:16]}  Bf3 {[%clk 0:02:53]} 16. O-O {[%clk 0:01:36]}  Qf6 {[%clk 0:02:41]} 17. Rfc1 {[%clk 0:00:28]}  Qg5+ {[%clk 0:02:36]} 18. Kf1 {[%clk 0:00:28]}  Qg2+ {[%clk 0:02:36]} 19. Ke1 {[%clk 0:00:29]}  Qg1+ {[%clk 0:02:37]} 20. Kd2 {[%clk 0:00:29]}  Qxf2+ {[%clk 0:02:37]} 21. Kd3 {[%clk 0:00:29]}  Rxe3# {[%clk 0:02:34]} 0-1


[Site "https://www.chess.com"]

[Event "Titled Tuesday Blitz January 17 Early 2023"]
[White "Ahmad, Al Khatib"]
[Black "Samaganova, Aleksandra"]
[WhiteFideId "8103178"]
[BlackFideId "13800221"]
[WhiteElo "2344"]
[BlackElo "1856"]
[Result "1-0"]
[Round "10"]
[TimeControl "180+2"]
[Date "2023.01.17"]
[WhiteClock "0:00:05"]
[BlackClock "0:00:02"]

1. Nf3 {[%clk 0:03:00]}  c5 {[%clk 0:02:59]} 2. g3 {[%clk 0:02:59]}  Nc6 {[%clk 0:02:58]} 3. Bg2 {[%clk 0:02:59]}  g6 {[%clk 0:02:58]} 4. e4 {[%clk 0:02:56]}  Bg7 {[%clk 0:02:58]} 5. d3 {[%clk 0:02:56]}  e6 {[%clk 0:02:55]} 6. O-O {[%clk 0:02:48]}  Nge7 {[%clk 0:02:54]} 7. Re1 {[%clk 0:02:44]}  O-O {[%clk 0:02:49]} 8. e5 {[%clk 0:02:44]}  d6 {[%clk 0:02:44]} 9. exd6 {[%clk 0:02:45]}  Qxd6 {[%clk 0:02:43]} 10. Nbd2 {[%clk 0:02:45]}  b6 {[%clk 0:02:39]} 11. Nc4 {[%clk 0:02:39]}  Qd8 {[%clk 0:02:29]} 12. a4 {[%clk 0:02:26]}  Ba6 {[%clk 0:02:19]} 13. Qe2 {[%clk 0:02:00]}  Rc8 {[%clk 0:02:09]} 14. h4 {[%clk 0:01:59]}  Bxc4 {[%clk 0:01:50]} 15. dxc4 {[%clk 0:01:59]}  Nd4 {[%clk 0:01:50]} 16. Qd1 {[%clk 0:01:29]}  Nef5 {[%clk 0:01:36]} 17. c3 {[%clk 0:01:26]}  Nxf3+ {[%clk 0:01:31]} 18. Qxf3 {[%clk 0:01:26]}  h5 {[%clk 0:01:22]} 19. Bg5 {[%clk 0:01:21]}  Qc7 {[%clk 0:01:17]} 20. Bf4 {[%clk 0:01:09]}  Qe7 {[%clk 0:01:07]} 21. a5 {[%clk 0:01:01]}  Bf6 {[%clk 0:00:42]} 22. axb6 {[%clk 0:01:00]}  axb6 {[%clk 0:00:41]} 23. Qb7 {[%clk 0:00:55]}  Qxb7 {[%clk 0:00:18]} 24. Bxb7 {[%clk 0:00:55]}  Rcd8 {[%clk 0:00:19]} 25. Red1 {[%clk 0:00:42]}  Rxd1+ {[%clk 0:00:18]} 26. Rxd1 {[%clk 0:00:42]}  Rd8 {[%clk 0:00:18]} 27. Ra1 {[%clk 0:00:33]}  e5 {[%clk 0:00:11]} 28. Bg5 {[%clk 0:00:15]}  Bxg5 {[%clk 0:00:11]} 29. hxg5 {[%clk 0:00:16]}  Rd2 {[%clk 0:00:10]} 30. b4 {[%clk 0:00:12]}  Rc2 {[%clk 0:00:07]} 31. Bd5 {[%clk 0:00:08]}  Rxc3 {[%clk 0:00:05]} 32. bxc5 {[%clk 0:00:08]}  bxc5 {[%clk 0:00:05]} 33. Ra7 {[%clk 0:00:09]}  Rc1+ {[%clk 0:00:04]} 34. Kg2 {[%clk 0:00:09]}  Nd4 {[%clk 0:00:04]} 35. Rxf7 {[%clk 0:00:07]}  Kh8 {[%clk 0:00:04]} 36. Rc7 {[%clk 0:00:07]}  Rc2 {[%clk 0:00:04]} 37. Rc8+ {[%clk 0:00:08]}  Kg7 {[%clk 0:00:04]} 38. Rc7+ {[%clk 0:00:08]}  Kh8 {[%clk 0:00:04]} 39. Rxc5 {[%clk 0:00:09]}  Ne2 {[%clk 0:00:02]} 40. Rc8+ {[%clk 0:00:09]}  Kg7 {[%clk 0:00:02]} 41. Rc7+ {[%clk 0:00:09]}  Kh8 {[%clk 0:00:03]} 42. Be4 {[%clk 0:00:08]}  Rc3 {[%clk 0:00:02]} 43. Bxg6 {[%clk 0:00:07]}  Nd4 {[%clk 0:00:02]} 44. Be4 {[%clk 0:00:05]} 1-0


[Site "https://www.chess.com"]

[Event "Titled Tuesday Blitz January 17 Early 2023"]
[White "Sanchez, Robert"]
[Black "Hoffmann, Asa"]
[WhiteFideId "2034360"]
[BlackFideId "2001470"]
[WhiteElo "1966"]
[BlackElo "2185"]
[Result "1-0"]
[Round "10"]
[TimeControl "180+2"]
[Date "2023.01.17"]
[WhiteClock "0:00:08"]
[BlackClock "0:00:04"]

1. e4 {[%clk 0:03:00]}  d6 {[%clk 0:02:58]} 2. d4 {[%clk 0:03:00]}  c6 {[%clk 0:02:58]} 3. Nc3 {[%clk 0:03:00]}  a6 {[%clk 0:02:58]} 4. Be3 {[%clk 0:03:00]}  Nf6 {[%clk 0:02:54]} 5. f3 {[%clk 0:03:00]}  Nbd7 {[%clk 0:02:53]} 6. Qd2 {[%clk 0:03:01]}  b5 {[%clk 0:02:53]} 7. O-O-O {[%clk 0:03:01]}  Qc7 {[%clk 0:02:53]} 8. Kb1 {[%clk 0:03:01]}  e5 {[%clk 0:02:52]} 9. g4 {[%clk 0:03:00]}  Be7 {[%clk 0:02:52]} 10. h4 {[%clk 0:02:59]}  Nb6 {[%clk 0:02:48]} 11. Bd3 {[%clk 0:02:58]}  Bb7 {[%clk 0:02:37]} 12. h5 {[%clk 0:02:55]}  h6 {[%clk 0:02:36]} 13. Nh3 {[%clk 0:02:54]}  c5 {[%clk 0:02:31]} 14. dxe5 {[%clk 0:02:40]}  dxe5 {[%clk 0:02:26]} 15. Qf2 {[%clk 0:02:34]}  O-O-O {[%clk 0:02:12]} 16. g5 {[%clk 0:02:33]}  Nfd7 {[%clk 0:02:09]} 17. Nd5 {[%clk 0:02:23]}  Bxd5 {[%clk 0:01:54]} 18. exd5 {[%clk 0:02:23]}  Nxd5 {[%clk 0:01:47]} 19. Bc1 {[%clk 0:02:19]}  N7b6 {[%clk 0:01:44]} 20. g6 {[%clk 0:02:10]}  f6 {[%clk 0:01:42]} 21. f4 {[%clk 0:02:06]}  c4 {[%clk 0:01:38]} 22. Be4 {[%clk 0:01:58]}  Bc5 {[%clk 0:01:37]} 23. Qf3 {[%clk 0:01:50]}  Ne7 {[%clk 0:01:20]} 24. fxe5 {[%clk 0:01:46]}  fxe5 {[%clk 0:01:16]} 25. Qf7 {[%clk 0:01:23]}  Nc6 {[%clk 0:01:10]} 26. Qf3 {[%clk 0:01:17]}  Rhf8 {[%clk 0:01:08]} 27. Rxd8+ {[%clk 0:01:12]}  Qxd8 {[%clk 0:01:05]} 28. Qg4+ {[%clk 0:01:04]}  Qd7 {[%clk 0:01:01]} 29. Qg2 {[%clk 0:00:51]}  Kc7 {[%clk 0:00:52]} 30. c3 {[%clk 0:00:49]}  Rf6 {[%clk 0:00:45]} 31. Bc2 {[%clk 0:00:44]}  Qe7 {[%clk 0:00:35]} 32. Bxh6 {[%clk 0:00:33]}  b4 {[%clk 0:00:30]} 33. Bg5 {[%clk 0:00:32]}  bxc3 {[%clk 0:00:30]} 34. Bxf6 {[%clk 0:00:20]}  Qxf6 {[%clk 0:00:29]} 35. Rf1 {[%clk 0:00:20]}  Qd6 {[%clk 0:00:23]} 36. bxc3 {[%clk 0:00:14]}  Nd5 {[%clk 0:00:21]} 37. Qf3 {[%clk 0:00:13]}  Ba3 {[%clk 0:00:19]} 38. Rd1 {[%clk 0:00:10]}  Nce7 {[%clk 0:00:18]} 39. Rxd5 {[%clk 0:00:04]}  Qxd5 {[%clk 0:00:17]} 40. Qxd5 {[%clk 0:00:04]}  Nxd5 {[%clk 0:00:17]} 41. h6 {[%clk 0:00:05]}  Nxc3+ {[%clk 0:00:16]} 42. Ka1 {[%clk 0:00:05]}  gxh6 {[%clk 0:00:16]} 43. g7 {[%clk 0:00:05]}  e4 {[%clk 0:00:13]} 44. g8=Q {[%clk 0:00:05]}  e3 {[%clk 0:00:13]} 45. Qxc4+ {[%clk 0:00:05]}  Kd6 {[%clk 0:00:12]} 46. Qxc3 {[%clk 0:00:05]}  Bc5 {[%clk 0:00:12]} 47. Qd3+ {[%clk 0:00:05]}  Ke5 {[%clk 0:00:12]} 48. Qf5+ {[%clk 0:00:04]}  Kd4 {[%clk 0:00:12]} 49. Nf4 {[%clk 0:00:04]}  Kc3 {[%clk 0:00:10]} 50. Qd3+ {[%clk 0:00:03]}  Kb4 {[%clk 0:00:09]} 51. Nd5+ {[%clk 0:00:04]}  Ka5 {[%clk 0:00:09]} 52. Nxe3 {[%clk 0:00:05]}  Kb6 {[%clk 0:00:06]} 53. Nc4+ {[%clk 0:00:04]}  Kc6 {[%clk 0:00:06]} 54. Kb1 {[%clk 0:00:05]}  a5 {[%clk 0:00:06]} 55. a4 {[%clk 0:00:05]}  Bb4 {[%clk 0:00:05]} 56. Ne5+ {[%clk 0:00:05]}  Kc5 {[%clk 0:00:05]} 57. Nf3 {[%clk 0:00:05]}  Kc6 {[%clk 0:00:05]} 58. Bb3 {[%clk 0:00:05]}  Kc5 {[%clk 0:00:05]} 59. Qb5+ {[%clk 0:00:06]}  Kd6 {[%clk 0:00:04]} 60. Kc2 {[%clk 0:00:07]}  Ke7 {[%clk 0:00:04]} 61. Kd3 {[%clk 0:00:08]} 1-0


[Site "https://www.chess.com"]

[Event "Titled Tuesday Blitz January 17 Early 2023"]
[White "Lauridsen, Jesper Morch"]
[Black "Buchenau, Frank"]
[WhiteFideId "1401890"]
[BlackFideId "4604350"]
[WhiteElo "2309"]
[BlackElo "2222"]
[Result "0-1"]
[Round "10"]
[TimeControl "180+2"]
[Date "2023.01.17"]
[WhiteClock "0:00:06"]
[BlackClock "0:01:35"]

1. e4 {[%clk 0:03:00]}  e6 {[%clk 0:02:59]} 2. c4 {[%clk 0:03:00]}  d5 {[%clk 0:02:59]} 3. cxd5 {[%clk 0:03:00]}  exd5 {[%clk 0:02:59]} 4. Qb3 {[%clk 0:03:00]}  dxe4 {[%clk 0:02:55]} 5. Bc4 {[%clk 0:03:01]}  Qe7 {[%clk 0:02:53]} 6. Nc3 {[%clk 0:03:01]}  Nf6 {[%clk 0:02:51]} 7. d3 {[%clk 0:02:56]}  Nbd7 {[%clk 0:02:48]} 8. Bg5 {[%clk 0:02:50]}  Nc5 {[%clk 0:02:45]} 9. Qd1 {[%clk 0:02:44]}  Nxd3+ {[%clk 0:02:38]} 10. Kf1 {[%clk 0:02:35]}  Nxf2 {[%clk 0:02:27]} 11. Bb5+ {[%clk 0:01:33]}  c6 {[%clk 0:02:25]} 12. Kxf2 {[%clk 0:01:30]}  cxb5 {[%clk 0:02:22]} 13. h3 {[%clk 0:00:10]}  Qe5 {[%clk 0:02:14]} 14. Bxf6 {[%clk 0:00:08]}  Qxf6+ {[%clk 0:02:13]} 15. Ke1 {[%clk 0:00:08]}  Qh4+ {[%clk 0:02:09]} 16. Kd2 {[%clk 0:00:08]}  Bf5 {[%clk 0:01:56]} 17. Kc2 {[%clk 0:00:08]}  e3+ {[%clk 0:01:53]} 18. Kc1 {[%clk 0:00:08]}  b4 {[%clk 0:01:44]} 19. Qa4+ {[%clk 0:00:07]}  Bd7 {[%clk 0:01:43]} 20. Nb5 {[%clk 0:00:07]}  Qe1+ {[%clk 0:01:39]} 21. Kc2 {[%clk 0:00:06]}  Rc8+ {[%clk 0:01:37]} 22. Kb3 {[%clk 0:00:06]}  Be6# {[%clk 0:01:35]} 0-1


[Site "https://www.chess.com"]

[Event "Titled Tuesday Blitz January 17 Early 2023"]
[White "parintele_chess"]
[Black "Rodrigues, Leonardo De Miranda"]
[BlackFideId "2108658"]
[WhiteElo "2259"]
[BlackElo "2112"]
[Result "0-1"]
[Round "10"]
[TimeControl "180+2"]
[Date "2023.01.17"]
[WhiteClock "0:00:04"]
[BlackClock "0:00:42"]

1. d4 {[%clk 0:03:00]}  Nf6 {[%clk 0:02:57]} 2. Bf4 {[%clk 0:03:00]}  c5 {[%clk 0:02:56]} 3. e3 {[%clk 0:03:00]}  Qb6 {[%clk 0:02:54]} 4. Nc3 {[%clk 0:02:59]}  a6 {[%clk 0:02:52]} 5. dxc5 {[%clk 0:02:47]}  Qxb2 {[%clk 0:02:50]} 6. Na4 {[%clk 0:02:45]}  Qa3 {[%clk 0:02:45]} 7. Nb6 {[%clk 0:02:24]}  Qc3+ {[%clk 0:02:23]} 8. Ke2 {[%clk 0:02:23]}  e5 {[%clk 0:02:16]} 9. Nxa8 {[%clk 0:01:40]}  exf4 {[%clk 0:02:09]} 10. Nb6 {[%clk 0:01:31]}  Qxc5 {[%clk 0:01:39]} 11. Nxc8 {[%clk 0:01:28]}  Qxc8 {[%clk 0:01:38]} 12. Nf3 {[%clk 0:01:14]}  Nc6 {[%clk 0:01:26]} 13. Nd4 {[%clk 0:00:47]}  Ne5 {[%clk 0:01:14]} 14. Qd2 {[%clk 0:00:30]}  Qc4+ {[%clk 0:01:10]} 15. Ke1 {[%clk 0:00:28]}  Qa4 {[%clk 0:00:56]} 16. exf4 {[%clk 0:00:22]}  Bb4 {[%clk 0:00:50]} 17. c3 {[%clk 0:00:21]}  Ne4 {[%clk 0:00:49]} 18. cxb4 {[%clk 0:00:14]}  Nxd2 {[%clk 0:00:48]} 19. fxe5 {[%clk 0:00:10]}  Qxb4 {[%clk 0:00:46]} 20. Nc2 {[%clk 0:00:09]}  Qc3 {[%clk 0:00:45]} 21. Kd1 {[%clk 0:00:04]}  Ne4 {[%clk 0:00:42]} 0-1


[Site "https://www.chess.com"]

[Event "Titled Tuesday Blitz January 17 Early 2023"]
[White "Rose, Felix"]
[Black "Iskusnyh, Sergei"]
[WhiteFideId "5105722"]
[BlackFideId "4120027"]
[WhiteElo "2091"]
[BlackElo "2440"]
[Result "0-1"]
[Round "10"]
[TimeControl "180+2"]
[Date "2023.01.17"]
[WhiteClock "0:00:01"]
[BlackClock "0:01:22"]

1. e4 {[%clk 0:02:59]}  e6 {[%clk 0:02:35]} 2. d4 {[%clk 0:02:59]}  d5 {[%clk 0:02:33]} 3. Nc3 {[%clk 0:03:00]}  Nf6 {[%clk 0:02:33]} 4. e5 {[%clk 0:03:00]}  Nfd7 {[%clk 0:02:33]} 5. f4 {[%clk 0:03:01]}  c5 {[%clk 0:02:30]} 6. Nf3 {[%clk 0:03:01]}  Be7 {[%clk 0:02:31]} 7. Be3 {[%clk 0:03:01]}  O-O {[%clk 0:02:27]} 8. Qd2 {[%clk 0:03:01]}  a6 {[%clk 0:02:26]} 9. Be2 {[%clk 0:02:52]}  b5 {[%clk 0:02:26]} 10. dxc5 {[%clk 0:02:49]}  Nxc5 {[%clk 0:02:22]} 11. a3 {[%clk 0:02:47]}  Nbd7 {[%clk 0:02:15]} 12. Nd4 {[%clk 0:02:45]}  Bb7 {[%clk 0:02:14]} 13. O-O {[%clk 0:02:43]}  Qc7 {[%clk 0:02:09]} 14. Bd3 {[%clk 0:02:35]}  Ne4 {[%clk 0:02:03]} 15. Bxe4 {[%clk 0:02:28]}  dxe4 {[%clk 0:02:03]} 16. Qe2 {[%clk 0:02:19]}  Nb6 {[%clk 0:01:57]} 17. Kh1 {[%clk 0:02:05]}  Nc4 {[%clk 0:01:55]} 18. Bc1 {[%clk 0:01:54]}  Rad8 {[%clk 0:01:53]} 19. Nb3 {[%clk 0:01:43]}  Nxa3 {[%clk 0:01:44]} 20. Nxe4 {[%clk 0:01:04]}  Qxc2 {[%clk 0:01:41]} 21. Nbd2 {[%clk 0:00:43]}  Nc4 {[%clk 0:01:31]} 22. Rf2 {[%clk 0:00:12]}  Bxe4 {[%clk 0:01:25]} 23. Nxe4 {[%clk 0:00:03]}  Qxe2 {[%clk 0:01:22]} 24. Rxe2 {[%clk 0:00:01]}  Rd1+ {[%clk 0:01:22]} 0-1


[Site "https://www.chess.com"]